fUSD/lending_fUSD_20250405
["ID","MTS","AMOUNT","RATE_DAILY","PERIOD"]
[357200394,1743889857424,-500.0,0.0003041,2]
[357200395,1743889857432,-500.0,0.0003041,2]
[357200396,1743889857441,-500.0,0.0003041,2]
[357200397,1743889857450,-507.35910554,0.0003041,2]
[357200398,1743889857460,-505.49295515,0.0003041,2]
[357200399,1743889857470,-500.0,0.0003041,2]
[357200400,1743889857479,-500.0,0.0003041,2]
[357200401,1743889857489,-520.10055549,0.0003041,2]
[357200402,1743889857498,-500.0,0.0003041,2]
[357200403,1743889857507,-500.0,0.0003041,2]
[357200404,1743889857517,-584.28188745,0.0003041,2]
[357200405,1743889857526,-507.05349357,0.0003041,2]
[357200406,1743889857535,-517.20919021,0.0003041,2]
[357200407,1743889857544,-500.0,0.0003041,2]
[357200408,1743889857553,-549.13274717,0.0003041,2]
[357200409,1743889857562,-506.77477825,0.0003041,2]
[357200410,1743889857571,-518.5123681,0.0003041,2]
[357200411,1743889857580,-520.12930537,0.0003041,2]
[357200412,1743889857591,-514.00498467,0.0003041,2]
[357200413,1743889857601,-518.84070176,0.0003041,2]
[357200414,1743889857611,-500.0,0.0003041,2]
[357200415,1743889857620,-523.09539051,0.0003041,2]
[357200416,1743889857629,-500.0,0.0003041,2]
[357200417,1743889857639,-500.0,0.0003041,2]
[357200418,1743889857648,-474.08121199,0.0003041,2]
[357200419,1743889857657,-504.34623359,0.0003041,2]
[357200420,1743889857666,-500.0,0.0003041,2]
[357200421,1743889857677,-500.0,0.0003041,2]
[357200422,1743889857686,-524.41066558,0.0003041,2]
[357200423,1743889857695,-500.0,0.0003041,2]
[357200424,1743889857704,-500.0,0.0003041,2]
[357200425,1743889857714,-483.68626695,0.0003041,2]
[357200426,1743889857723,-500.0,0.0003041,2]
[357200427,1743889857732,-522.45275744,0.0003041,2]
[357200428,1743889857742,-509.91071171,0.0003041,2]
[357200429,1743889857751,-500.0,0.0003041,2]
[357200430,1743889857760,-500.0,0.0003041,2]
[357200431,1743889857770,-500.0,0.0003041,2]
[357200432,1743889857779,-644.66,0.0003041,2]
[357200433,1743889857789,-503.02211405,0.0003041,2]
[357200434,1743889857798,-500.0,0.0003041,2]
[357200435,1743889857808,-509.5118842,0.0003041,2]
[357200436,1743889857817,-520.08564843,0.0003041,2]
[357200437,1743889857826,-280.02471084,0.0003041,2]
[357200438,1743889857834,-523.09271621,0.0003041,2]
[357200439,1743889857951,-500.0,0.0003041,2]
[357200440,1743889857960,-500.0,0.0003041,2]
[357200441,1743889857970,-526.02156899,0.0003041,2]
[357200442,1743889857979,-500.0,0.0003041,2]
[357200443,1743889857988,-315.62021063,0.0003041,2]
[357200444,1743889857997,-574.54445446,0.0003041,2]
[357200445,1743889858006,-7942.6,0.0003041,2]
[357200446,1743889858015,-517.29440224,0.0003041,2]
[357200447,1743889858024,-508.00522879,0.0003041,2]
[357200448,1743889858033,-539.65386318,0.0003041,2]
[357200449,1743889858043,-500.0,0.0003041,2]
[357200450,1743889858055,-500.0,0.0003041,2]
[357200451,1743889858064,-509.89758865,0.0003041,2]
[357200452,1743889858073,-573.57767116,0.0003041,2]
[357200453,1743889858082,-505.52804693,0.0003041,2]
[357200454,1743889858091,-545.25900712,0.0003041,2]
[357200455,1743889858101,-632.64546975,0.0003041,2]
[357200456,1743889858110,-658.98,0.0003041,2]
[357200457,1743889858119,-547.99,0.0003041,2]
[357200458,1743889858130,-500.0,0.0003041,2]
[357200459,1743889858140,-503.73948512,0.0003041,2]
[357200460,1743889858149,-553.55508174,0.0003041,2]
[357200461,1743889858158,-500.0,0.0003041,2]
[357200462,1743889858167,-500.0,0.0003041,2]
[357200463,1743889858175,-500.0,0.0003041,2]
[357200464,1743889858184,-234.89760435,0.0003041,2]
[357200465,1743889858193,-494.63964005,0.0003041,2]
[357200466,1743889858203,-848.11488557,0.0003041,2]
[357200467,1743889858212,-500.0,0.0003041,2]
[357200468,1743889858222,-500.0,0.0003041,2]
[357200469,1743889858231,-500.0,0.0003041,2]
[357200470,1743889858240,-504.09741878,0.0003041,2]
[357200471,1743889858249,-515.35380868,0.0003041,2]
[357200472,1743889858257,-500.0,0.0003041,2]
[357200473,1743889858266,-199.18727,0.0003041,2]
[357200474,1743889858275,-508.25577,0.0003041,2]
[357200475,1743889858284,-500.0,0.0003041,2]
[357200476,1743889858293,-500.0,0.0003041,2]
[357200477,1743889858302,-523.35691038,0.0003041,2]
[357200478,1743889858311,-530.18169858,0.0003041,2]
[357200479,1743889858321,-507.9709791,0.0003041,2]
[357200480,1743889858330,-500.0,0.0003041,2]
[357200481,1743889858339,-500.0,0.0003041,2]
[357200482,1743889858348,-517.7155255,0.0003041,2]
[357200483,1743889858357,-505.77435798,0.0003041,2]
[357200484,1743889858365,-518.71005962,0.0003041,2]
[357200485,1743889858374,-500.0,0.0003041,2]
[357200486,1743889858383,-500.0,0.0003041,2]
[357200487,1743889858392,-233.61539486,0.0003041,2]
[357200488,1743889858401,-637.97156898,0.0003041,2]
[357200489,1743889858410,-500.0,0.0003041,2]
[357200490,1743889858419,-520.06943918,0.0003041,2]
[357200491,1743889858427,-512.54812131,0.0003041,2]
[357200492,1743889858436,-500.0,0.0003041,2]
[357200493,1743889858445,-500.0,0.0003041,2]
[357200494,1743889858454,-500.0,0.0003041,2]
[357200495,1743889858463,-500.0,0.0003041,2]
[357200496,1743889858471,-500.0,0.0003041,2]
[357200497,1743889858480,-500.0,0.0003041,2]
[357200498,1743889858489,-500.0,0.0003041,2]
[357200499,1743889858498,-500.0,0.0003041,2]
[357200500,1743889858508,-565.16402811,0.0003041,2]
[357200501,1743889858517,-1097.44,0.0003041,2]
[357200502,1743889858526,-514.32027791,0.0003041,2]
[357200503,1743889858535,-515.86033751,0.0003041,2]
[357200504,1743889858544,-526.80648746,0.0003041,2]
[357200505,1743889858553,-500.0,0.0003041,2]
[357200506,1743889858562,-507.16706568,0.0003041,2]
[357200507,1743889858571,-500.0,0.0003041,2]
[357200508,1743889858580,-500.0,0.0003041,2]
[357200509,1743889858590,-500.0,0.0003041,2]
[357200510,1743889858599,-570.67194391,0.0003041,2]
[357200511,1743889858608,-523.01179669,0.0003041,2]
[357200512,1743889858617,-521.81484683,0.0003041,2]
[357200513,1743889858626,-580.13745359,0.0003041,2]
[357200514,1743889858636,-415.16614328,0.0003041,2]
[357200515,1743889858645,-500.0,0.0003041,2]
[357200516,1743889858654,-500.0,0.0003041,2]
[357200517,1743889858663,-5124.55,0.0003041,2]
[357200518,1743889858671,-500.0,0.0003041,2]
[357200519,1743889858681,-539.21243382,0.0003041,2]
[357200520,1743889858690,-500.0,0.0003041,2]
[357200521,1743889858699,-500.0,0.0003041,2]
[357200522,1743889858708,-500.0,0.0003041,2]
[357200523,1743889858717,-3954.57,0.0003041,2]
[357200524,1743889858726,-2313.92,0.0003041,2]
[357200525,1743889858735,-500.0,0.0003041,2]
[357200526,1743889858743,-500.0,0.0003041,2]
[357200527,1743889858752,-515.21796305,0.0003041,2]
[357200528,1743889858761,-525.25972368,0.0003041,2]
[357200529,1743889858770,-516.49980644,0.0003041,2]
[357200530,1743889858779,-516.79885073,0.0003041,2]
[357200531,1743889858788,-510.20882117,0.0003041,2]
[357200532,1743889858797,-500.0,0.0003041,2]
[357200533,1743889858806,-500.0,0.0003041,2]
[357200534,1743889858815,-521.75635789,0.0003041,2]
[357200535,1743889858823,-500.0,0.0003041,2]
[357200536,1743889858833,-531.65516425,0.0003041,2]
[357200537,1743889858842,-645.22791666,0.0003041,2]
[357200538,1743889858851,-500.0,0.0003041,2]
[357200539,1743889858860,-500.0,0.0003041,2]
[357200540,1743889858869,-330.86452433,0.0003041,2]
[357200541,1743889858878,-511.45713236,0.0003041,2]
[357200542,1743889858887,-500.0,0.0003041,2]
[357200543,1743889858896,-514.17567783,0.0003041,2]
[357200544,1743889858905,-510.5453482,0.0003041,2]
[357200545,1743889858914,-725.53,0.0003041,2]
[357200546,1743889858923,-500.0,0.0003041,2]
[357200547,1743889858932,-500.0,0.0003041,2]
[357200548,1743889858941,-504.915256,0.0003041,2]
[357200549,1743889858950,-508.4038156,0.0003041,2]
[357200550,1743889858959,-508.19981203,0.0003041,2]
[357200551,1743889858967,-500.0,0.0003041,2]
[357200552,1743889858976,-500.0,0.0003041,2]
[357200553,1743889858985,-514.53044221,0.0003041,2]
[357200554,1743889858994,-522.41897847,0.0003041,2]
[357200555,1743889859002,-500.0,0.0003041,2]
[357200556,1743889859011,-509.28792984,0.0003041,2]
[357200557,1743889859020,-500.0,0.0003041,2]
[357200558,1743889859029,-9545.26,0.0003041,2]
[357200559,1743889859038,-500.0,0.0003041,2]
[357200560,1743889859051,-509.37834585,0.0003041,2]
[357200561,1743889859061,-500.0,0.0003041,2]
[357200562,1743889859070,-515.64588554,0.0003041,2]
[357200563,1743889859079,-372.6700148,0.0003041,2]
[357200564,1743889859089,-630.22839388,0.0003041,2]
[357200565,1743889859098,-520.7161312,0.0003041,2]
[357200566,1743889859107,-500.0,0.0003041,2]
[357200567,1743889859116,-500.0,0.0003041,2]
[357200568,1743889859125,-509.7505455,0.0003041,2]
[357200569,1743889859133,-500.0,0.0003041,2]
[357200570,1743889859142,-533.75570278,0.0003041,2]
[357200571,1743889859151,-599.90935513,0.0003041,2]
[357200572,1743889859160,-512.81541993,0.0003041,2]
[357200573,1743889859169,-304.04106276,0.0003041,2]
[357200574,1743889859178,-500.0,0.0003041,2]
[357200575,1743889859186,-500.0,0.0003041,2]
[357200576,1743889859195,-500.0,0.0003041,2]
[357200577,1743889859204,-500.0,0.0003041,2]
[357200578,1743889859214,-500.0,0.0003041,2]
[357200579,1743889859223,-1174.37,0.0003041,2]
[357200580,1743889859231,-506.99699451,0.0003041,2]
[357200581,1743889859240,-581.99597756,0.0003041,2]
[357200582,1743889859249,-521.37424492,0.0003041,2]
[357200583,1743889859258,-500.0,0.0003041,2]
[357200584,1743889859266,-500.0,0.0003041,2]
[357200585,1743889859275,-500.0,0.0003041,2]
[357200586,1743889859284,-500.0,0.0003041,2]
[357200587,1743889859293,-516.93911319,0.0003041,2]
[357200588,1743889859301,-500.0,0.0003041,2]
[357200589,1743889859310,-729.74,0.0003041,2]
[357200590,1743889859320,-500.0,0.0003041,2]
[357200591,1743889859329,-993.03832792,0.0003041,2]
[357200592,1743889859338,-500.0,0.0003041,2]
[357200593,1743889859347,-633.0988922,0.0003041,2]
[357200594,1743889859356,-500.0,0.0003041,2]
[357200595,1743889859366,-500.0,0.0003041,2]
[357200596,1743889859375,-500.0,0.0003041,2]
[357200597,1743889859383,-500.0,0.0003041,2]
[357200598,1743889859393,-518.44827639,0.0003041,2]
[357200599,1743889859402,-500.0,0.0003041,2]
[357200600,1743889859411,-614.15440117,0.0003041,2]
[357200601,1743889859420,-497.36128,0.0003041,2]
[357200602,1743889859428,-500.0,0.0003041,2]
[357200603,1743889859437,-500.0,0.0003041,2]
[357200604,1743889859446,-530.59867301,0.0003041,2]
[357200605,1743889859456,-500.0,0.00030683,2]
[357200606,1743889859465,-500.0,0.00030683,2]
[357200607,1743889859473,-500.0,0.00030684,2]
[357200608,1743889859483,-500.0,0.00030684,2]
[357200609,1743889859491,-500.0,0.00030684,2]
[357200610,1743889859500,-568.05393737,0.00030684,2]
[357200611,1743889859509,-544.11593232,0.00030684,2]
[357200612,1743889859518,-210.67106284,0.00030684,2]
[357200613,1743889859527,-568.97090086,0.00030684,2]
[357200614,1743889859536,-500.0,0.00030684,2]
[357200615,1743889859545,-429.82265889,0.00030684,2]
[357200616,1743889859554,-500.0,0.00030684,2]
[357200617,1743889859563,-500.0,0.00030684,2]
[357200618,1743889859573,-593.4091937,0.00030684,2]
[357200619,1743889859582,-307.94148761,0.00030684,2]
[357200620,1743889859591,-549.09845356,0.00030684,2]
[357200621,1743889859600,-619.60282413,0.00030684,2]
[357200622,1743889859609,-500.0,0.00030684,2]
[357200623,1743889859619,-500.0,0.00030684,2]
[357200624,1743889859628,-500.0,0.00030684,2]
[357200625,1743889859639,-500.0,0.00030684,2]
[357200626,1743889859649,-500.0,0.00030684,2]
[357200627,1743889859658,-500.0,0.00030684,2]
[357200628,1743889859667,-500.0,0.00030684,2]
[357200629,1743889859676,-546.45093409,0.00030684,2]
[357200630,1743889859686,-500.0,0.00030684,2]
[357200631,1743889859695,-607.07330459,0.00030684,2]
[357200632,1743889859704,-417.10760886,0.00030684,2]
[357200633,1743889859713,-509.12995834,0.00030684,2]
[357200634,1743889859722,-500.0,0.00030684,2]
[357200635,1743889859731,-500.0,0.00030684,2]
[357200636,1743889859740,-500.0,0.00030684,2]
[357200637,1743889859749,-794.48,0.00030684,2]
[357200638,1743889859759,-500.0,0.00030684,2]
[357200639,1743889859767,-2000.0,0.00030684,2]
[357200640,1743889859777,-500.0,0.00030684,2]
[357200641,1743889859786,-1261.42,0.00030684,2]
[357200642,1743889859796,-500.0,0.00030684,2]
[357200643,1743889859805,-500.0,0.00030684,2]
[357200644,1743889859814,-235.6393166,0.00030684,2]
[357200645,1743889859823,-500.0,0.00030684,2]
[357200646,1743889859832,-500.0,0.00030684,2]
[357200647,1743889859841,-500.0,0.00030684,2]
[357200648,1743889859850,-500.0,0.00030684,2]
[357200649,1743889859859,-500.0,0.00030684,2]
[357200650,1743889859868,-500.0,0.00030684,2]
[357200651,1743889859878,-500.0,0.00030684,2]
[357200652,1743889859887,-500.0,0.00030684,2]
[357200653,1743889859897,-500.0,0.00030684,2]
[357200654,1743889859907,-500.0,0.00030684,2]
[357200655,1743889859916,-500.0,0.00030684,2]
[357200656,1743889859925,-500.0,0.00030684,2]
[357200657,1743889859934,-500.0,0.00030684,2]
[357200658,1743889859943,-500.0,0.00030684,2]
[357200659,1743889859952,-500.0,0.00030684,2]
[357200660,1743889859961,-500.0,0.00030684,2]
[357200661,1743889859972,-500.0,0.00030684,2]
[357200662,1743889859982,-500.0,0.00030684,2]
[357200663,1743889859991,-1339.42,0.00030684,2]
[357200664,1743889860001,-527.98,0.00030684,2]
[357200665,1743889860010,-516.05225113,0.00030684,2]
[357200666,1743889860019,-500.0,0.00030684,2]
[357200667,1743889860028,-500.0,0.00030684,2]
[357200668,1743889860037,-633.82085132,0.00030684,2]
[357200669,1743889860049,-500.0,0.00030684,2]
[357200670,1743889860059,-537.00776936,0.00030684,2]
[357200671,1743889860069,-500.0,0.00030684,2]
[357200672,1743889860177,-550.0273946,0.00030684,2]
[357200673,1743889860187,-500.0,0.00030684,2]
[357200674,1743889860197,-500.0,0.00030684,2]
[357200675,1743889860206,-500.0,0.00030684,2]
[357200676,1743889860216,-500.0,0.00030684,2]
[357200677,1743889860225,-500.0,0.00030684,2]
[357200678,1743889860234,-500.0,0.00030684,2]
[357200679,1743889860243,-500.0,0.00030684,2]
[357200680,1743889860253,-563.60624692,0.00030684,2]
[357200681,1743889860263,-500.0,0.00030684,2]
[357200682,1743889860273,-500.0,0.00030684,2]
[357200683,1743889860282,-203.25128227,0.00030684,2]
[357200684,1743889860291,-500.0,0.00030684,2]
[357200685,1743889860300,-500.0,0.00030684,2]
[357200686,1743889860309,-500.0,0.00030684,2]
[357200687,1743889860319,-526.65246906,0.00030684,2]
[357200688,1743889860328,-500.0,0.00030684,2]
[357200689,1743889860337,-500.0,0.00030684,2]
[357200690,1743889860346,-500.0,0.00030684,2]
[357200691,1743889860355,-500.0,0.00030684,2]
[357200692,1743889860365,-500.0,0.00030684,2]
[357200693,1743889860374,-500.0,0.00030684,2]
[357200694,1743889860383,-500.0,0.00030684,2]
[357200695,1743889860393,-479.20942067,0.00030684,2]
[357200696,1743889860402,-500.0,0.00030684,2]
[357200697,1743889860411,-500.0,0.00030684,2]
[357200698,1743889860421,-500.0,0.00030684,2]
[357200699,1743889860430,-500.0,0.00030684,2]
[357200700,1743889860439,-500.0,0.00030684,2]
[357200701,1743889860449,-257.55642469,0.00030684,2]
[357200702,1743889860458,-500.0,0.00030684,2]
[357200703,1743889860468,-537.21,0.00030684,2]
[357200704,1743889860477,-500.0,0.00030684,2]
[357200705,1743889860486,-500.0,0.00030684,2]
[357200706,1743889860495,-382.47802048,0.00030684,2]
[357200707,1743889860506,-205.85423615,0.00030684,2]
[357200708,1743889860516,-500.0,0.00030684,2]
[357200709,1743889860526,-500.0,0.00030684,2]
[357200710,1743889860535,-500.0,0.00030684,2]
[357200711,1743889860544,-500.0,0.00030684,2]
[357200712,1743889860553,-500.0,0.00030684,2]
[357200713,1743889860563,-500.0,0.00030684,2]
[357200714,1743889860573,-500.0,0.00030684,2]
[357200715,1743889860582,-500.0,0.00030684,2]
[357200716,1743889860592,-500.0,0.00030684,2]
[357200717,1743889860601,-500.0,0.00030684,2]
[357200718,1743889860610,-519.46524271,0.00030684,2]
[357200719,1743889860619,-493.81039262,0.00030684,2]
[357200720,1743889860629,-413.93183695,0.00030684,2]
[357200721,1743889860638,-500.0,0.00030684,2]
[357200722,1743889860647,-500.0,0.00030684,2]
[357200723,1743889860657,-500.0,0.00030684,2]
[357200724,1743889860666,-500.0,0.00030684,2]
[357200725,1743889860675,-500.0,0.00030684,2]
[357200726,1743889860684,-500.0,0.00030684,2]
[357200727,1743889860693,-500.0,0.00030684,2]
[357200728,1743889860702,-500.0,0.00030684,2]
[357200729,1743889860712,-500.0,0.00030684,2]
[357200730,1743889860722,-500.0,0.00030684,2]
[357200731,1743889860731,-553.80779872,0.00030684,2]
[357200732,1743889860740,-500.0,0.00030684,2]
[357200733,1743889860750,-500.0,0.00030684,2]
[357200734,1743889860759,-228.80319458,0.00030684,2]
[357200735,1743889860768,-500.0,0.00030684,2]
[357200736,1743889860778,-500.0,0.00030684,2]
[357200737,1743889860787,-500.0,0.00030684,2]
[357200738,1743889860796,-500.0,0.00030684,2]
[357200739,1743889860806,-500.0,0.00030684,2]
[357200740,1743889860816,-500.0,0.00030684,2]
[357200741,1743889860825,-500.0,0.00030684,2]
[357200742,1743889860834,-556.98590287,0.00030684,2]
[357200743,1743889860843,-500.0,0.00030684,2]
[357200744,1743889860852,-500.0,0.00030684,2]
[357200745,1743889860861,-575.05994405,0.00030684,2]
[357200746,1743889860871,-500.0,0.00030684,2]
[357200747,1743889860880,-500.0,0.00030684,2]
[357200748,1743889860889,-500.0,0.00030684,2]
[357200749,1743889860899,-297.83366397,0.00030684,2]
[357200750,1743889860908,-500.0,0.00030684,2]
[357200751,1743889860917,-500.0,0.00030684,2]
[357200752,1743889860926,-500.0,0.00030684,2]
[357200753,1743889860935,-500.0,0.00030684,2]
[357200754,1743889860944,-500.0,0.00030684,2]
[357200755,1743889860953,-390.19292229,0.00030684,2]
[357200756,1743889860962,-200.0,0.00030684,2]
[357200757,1743889860972,-500.0,0.00030684,2]
[357200758,1743889860981,-500.0,0.00030684,2]
[357200759,1743889860991,-500.0,0.00030684,2]
[357200760,1743889861000,-285.10326964,0.00030684,2]
[357200761,1743889861009,-269.0590216,0.00030684,2]
[357200762,1743889861019,-500.0,0.00030684,2]
[357200763,1743889861028,-237.35455888,0.00030684,2]
[357200764,1743889861037,-500.0,0.00030684,2]
[357200765,1743889861049,-500.0,0.00030684,2]
[357200766,1743889861059,-500.0,0.00030684,2]
[357200767,1743889861068,-544.09042836,0.00030684,2]
[357200768,1743889861078,-500.0,0.00030684,2]
[357200769,1743889861087,-500.0,0.00030684,2]
[357200770,1743889861096,-545.98252909,0.00030684,2]
[357200771,1743889861106,-500.0,0.00030684,2]
[357200772,1743889861115,-500.0,0.00030684,2]
[357200773,1743889861127,-500.0,0.00030684,2]
[357200774,1743889861137,-500.0,0.00030684,2]
[357200775,1743889861146,-503.26534807,0.00030684,2]
[357200776,1743889861155,-500.0,0.00030684,2]
[357200777,1743889861164,-620.57706053,0.00030684,2]
[357200778,1743889861174,-500.0,0.00030684,2]
[357200779,1743889861183,-549.3684024,0.00030684,2]
[357200780,1743889861192,-500.0,0.00030684,2]
[357200781,1743889861201,-500.0,0.00030684,2]
[357200782,1743889861211,-500.0,0.00030684,2]
[357200783,1743889861220,-500.0,0.00030684,2]
[357200784,1743889861229,-509.4031329,0.00030684,2]
[357200785,1743889861239,-552.42487315,0.00030684,2]
[357200786,1743889861248,-500.0,0.00030684,2]
[357200787,1743889861257,-532.63516057,0.00030684,2]
[357200788,1743889861266,-533.21060942,0.00030684,2]
[357200789,1743889861275,-500.0,0.00030684,2]
[357200790,1743889861285,-500.0,0.00030684,2]
[357200791,1743889861295,-546.70303126,0.00030684,2]
[357200792,1743889861304,-500.0,0.00030684,2]
[357200793,1743889861313,-500.0,0.00030684,2]
[357200794,1743889861323,-500.0,0.00030684,2]
[357200795,1743889861332,-500.0,0.00030684,2]
[357200796,1743889861341,-198.74454965,0.00030684,2]
[357200797,1743889861351,-500.0,0.00030684,2]
[357200798,1743889861360,-530.30115626,0.00030684,2]
[357200799,1743889861370,-527.31895559,0.00030684,2]
[357200800,1743889861379,-527.9328838,0.00030684,2]
[357200801,1743889861388,-500.0,0.00030684,2]
[357200802,1743889861398,-342.41443324,0.00030684,2]
[357200803,1743889861407,-500.0,0.00030684,2]
[357200804,1743889861417,-500.0,0.00030684,2]
[357200805,1743889861426,-342.30912079,0.00030684,2]
[357200806,1743889861436,-500.0,0.00030684,2]
[357200807,1743889861445,-500.0,0.00030684,2]
[357200808,1743889861454,-602.14942035,0.00030684,2]
[357200809,1743889861464,-644.66,0.00030684,2]
[357200810,1743889861473,-500.0,0.00030684,2]
[357200811,1743889861483,-500.0,0.00030684,2]
[357200812,1743889861492,-500.0,0.00030684,2]
[357200813,1743889861502,-500.0,0.00030684,2]
[357200814,1743889861511,-7942.6,0.00030684,2]
[357200815,1743889861520,-500.0,0.00030684,2]
[357200816,1743889861530,-500.0,0.00030684,2]
[357200817,1743889861539,-658.98,0.00030684,2]
[357200818,1743889861549,-547.99,0.00030684,2]
[357200819,1743889861559,-550.07386801,0.00030684,2]
[357200820,1743889861569,-500.0,0.00030684,2]
[357200821,1743889861579,-492.5084623,0.00030684,2]
[357200822,1743889861588,-542.21781651,0.00030684,2]
[357200823,1743889861598,-648.19390112,0.00030684,2]
[357200824,1743889861608,-500.0,0.00030684,2]
[357200825,1743889861618,-500.0,0.00030684,2]
[357200826,1743889861627,-500.0,0.00030684,2]
[357200827,1743889861636,-500.0,0.00030684,2]
[357200828,1743889861645,-580.22322428,0.00030684,2]
[357200829,1743889861655,-500.0,0.00030684,2]
[357200830,1743889861664,-500.0,0.00030684,2]
[357200831,1743889861673,-500.0,0.00030684,2]
[357200832,1743889861683,-500.0,0.00030684,2]
[357200833,1743889861693,-500.0,0.00030684,2]
[357200834,1743889861702,-500.0,0.00030684,2]
[357200835,1743889861712,-500.0,0.00030684,2]
[357200836,1743889861722,-500.0,0.00030684,2]
[357200837,1743889861731,-545.11059284,0.00030684,2]
[357200838,1743889861740,-500.0,0.00030684,2]
[357200839,1743889861749,-177.94082672,0.00030684,2]
[357200840,1743889861759,-500.0,0.00030684,2]
[357200841,1743889861769,-524.65825918,0.00030684,2]
[357200842,1743889861778,-1097.44,0.00030684,2]
[357200843,1743889861787,-322.06576416,0.00030684,2]
[357200844,1743889861798,-500.0,0.00030684,2]
[357200845,1743889861807,-500.0,0.00030684,2]
[357200846,1743889861817,-500.0,0.00030684,2]
[357200847,1743889861827,-500.0,0.00030684,2]
[357200848,1743889861836,-500.0,0.00030684,2]
[357200849,1743889861845,-5124.55,0.00030684,2]
[357200850,1743889861855,-199.66565074,0.00030684,2]
[357200851,1743889861864,-500.0,0.00030684,2]
[357200852,1743889861873,-500.0,0.00030684,2]
[357200853,1743889861882,-500.0,0.00030684,2]
[357200854,1743889861891,-3954.57,0.00030684,2]
[357200855,1743889861901,-2313.92,0.00030684,2]
[357200856,1743889861910,-608.39600694,0.00030684,2]
[357200857,1743889861919,-317.78016784,0.00030684,2]
[357200858,1743889861931,-500.0,0.00030684,2]
[357200859,1743889861940,-500.0,0.00030684,2]
[357200860,1743889861950,-500.0,0.00030684,2]
[357200861,1743889861959,-500.0,0.00030684,2]
[357200862,1743889861969,-552.19827443,0.00030684,2]
[357200863,1743889861978,-500.0,0.00030684,2]
[357200864,1743889861987,-500.0,0.00030684,2]
[357200865,1743889861997,-725.53,0.00030684,2]
[357200866,1743889862006,-500.0,0.00030684,2]
[357200867,1743889862015,-500.0,0.00030684,2]
[357200868,1743889862024,-500.0,0.00030684,2]
[357200869,1743889862034,-500.0,0.00030684,2]
[357200870,1743889862042,-500.0,0.00030684,2]
[357200871,1743889862056,-9545.26,0.00030684,2]
[357200872,1743889862066,-621.22181743,0.00030684,2]
[357200873,1743889862076,-500.0,0.00030684,2]
[357200874,1743889862085,-500.0,0.00030684,2]
[357200875,1743889862095,-500.0,0.00030684,2]
[357200876,1743889862104,-500.0,0.00030684,2]
[357200877,1743889862113,-500.0,0.00030684,2]
[357200878,1743889862122,-500.0,0.00030684,2]
[357200879,1743889862132,-500.0,0.00030684,2]
[357200880,1743889862141,-371.4120421,0.00030684,2]
[357200881,1743889862150,-500.0,0.00030684,2]
[357200882,1743889862159,-1174.37,0.00030684,2]
[357200883,1743889862168,-500.0,0.00030684,2]
[357200884,1743889862177,-500.0,0.00030684,2]
[357200885,1743889862186,-500.0,0.00030684,2]
[357200886,1743889862291,-500.0,0.00030684,2]
[357200887,1743889862300,-729.74,0.00030684,2]
[357200888,1743889862312,-500.0,0.00030684,2]
[357200889,1743889862322,-500.0,0.00030684,2]
[357200890,1743889862332,-500.0,0.00030684,2]
[357200891,1743889862341,-500.0,0.00030684,2]
[357200892,1743889862351,-500.0,0.00030684,2]
[357200893,1743889862361,-162.71204476,0.00030684,2]